fUSD/lending_fUSD_20241030
["ID","MTS","AMOUNT","RATE_DAILY","PERIOD"]
[341044573,1730301082196,-1711.21,0.00038356,120]
[341044574,1730301082207,-500.0,0.00038356,5]
[341044575,1730301082221,-500.0,0.00038356,5]
[341044576,1730301082230,-500.0,0.00038356,5]
[341044577,1730301082239,-500.0,0.00038356,5]
[341044578,1730301082248,-500.0,0.00038356,5]
[341044579,1730301082258,-500.0,0.00038356,5]
[341044580,1730301082268,-546.7,0.00038356,5]
[341044581,1730301082277,-500.0,0.00038356,5]
[341044582,1730301082286,-500.0,0.00038356,5]
[341044583,1730301082295,-500.0,0.00038356,5]
[341044584,1730301082306,-500.0,0.00038356,5]
[341044585,1730301082315,-500.0,0.00038356,5]
[341044586,1730301082324,-500.0,0.00038356,5]
[341044587,1730301082333,-476.22887322,0.00038356,5]
[341044588,1730301082342,-500.0,0.00038356,5]
[341044589,1730301082351,-500.0,0.00038356,5]
[341044590,1730301082361,-636.4,0.00038356,5]
[341044591,1730301082371,-1397.76,0.00038356,5]
[341044592,1730301082381,-540.06,0.00038356,5]
[341044593,1730301082391,-601.3,0.00038356,5]
[341044594,1730301082400,-701.17,0.00038356,5]
[341044595,1730301082409,-724.57,0.00038356,5]
[341044596,1730301082419,-1140.97,0.00038356,5]
[341044597,1730301082428,-1327.32,0.00038356,5]
[341044598,1730301082438,-794.59,0.00038356,5]
[341044599,1730301082448,-440.18915363,0.00038356,5]
[341044600,1730301082462,-650.16,0.00038356,5]
[341044601,1730301082472,-508.69,0.00038356,5]
[341044602,1730301082482,-553.9,0.00038356,5]
[341044603,1730301082491,-979.14,0.00038356,5]
[341044604,1730301082501,-500.0,0.00038356,5]
[341044605,1730301082510,-604.38,0.00038356,30]
[341044606,1730301082519,-1224.33,0.00038356,5]
[341044607,1730301082529,-902.67,0.00038356,5]
[341044608,1730301082538,-778.22,0.00038356,5]
[341044609,1730301082547,-347.70031684,0.00038356,5]
[341044610,1730301082558,-329.04428629,0.00038356,5]
[341044611,1730301082567,-500.0,0.00038356,5]
[341044612,1730301082577,-1335.04,0.00038356,5]
[341044613,1730301082586,-546.12,0.00038356,5]
[341044614,1730301082595,-813.76,0.00038356,5]
[341044615,1730301082604,-500.0,0.00038356,5]
[341044616,1730301082613,-581.37,0.00038356,5]
[341044617,1730301082623,-178.61804783,0.00038356,5]
[341044618,1730301082634,-601.11,0.00038356,5]
[341044619,1730301082643,-500.0,0.00038356,5]
[341044620,1730301082652,-426.18923485,0.00038356,5]
[341044621,1730301082662,-319.20036195,0.00038356,5]
[341044622,1730301082672,-3900.02,0.00038356,5]
[341044623,1730301082682,-196.85278747,0.00038356,5]
[341044624,1730301082691,-3956.8,0.00038356,5]
[341044625,1730301082701,-1033.49,0.00038356,5]
[341044626,1730301082713,-2561.17,0.00038356,5]
[341044627,1730301082723,-5020.91,0.00038356,5]
[341044628,1730301082732,-1504.38,0.00038356,5]
[341044629,1730301082741,-6391.17,0.00038356,2]
[341044630,1730301082750,-665911.9,0.00038356,2]
[341044631,1730301082760,-150.0,0.000385,28]
[341044632,1730301082770,-542.0,0.00038629,5]
[341044633,1730301082779,-500.0,0.0003863,5]
[341044634,1730301082788,-1139.26,0.0003863,2]
[341044635,1730301082798,-600.73,0.0003863,5]
[341044636,1730301082807,-879.74,0.0003863,5]
[341044637,1730301082816,-834.42,0.0003863,5]
[341044638,1730301082827,-500.0,0.0003863,5]
[341044639,1730301082836,-500.0,0.0003863,5]
[341044640,1730301082848,-541.52,0.0003863,5]
[341044641,1730301082859,-646.69,0.0003863,5]
[341044642,1730301082869,-599.58,0.0003863,5]
[341044643,1730301082879,-739.01,0.0003863,5]
[341044644,1730301082889,-644.7,0.0003863,5]
[341044645,1730301082899,-234.99571889,0.0003863,120]
[341044646,1730301082908,-610.76,0.0003863,5]
[341044647,1730301082918,-1213.36,0.0003863,5]
[341044648,1730301082928,-741.71,0.0003863,5]
[341044649,1730301082939,-791.34,0.0003863,5]
[341044650,1730301082950,-2165.19,0.0003863,5]
[341044651,1730301082964,-2507.94,0.0003863,5]
[341044652,1730301082976,-230.58969441,0.0003863,5]
[341044653,1730301082985,-556.27,0.0003863,5]
[341044654,1730301082994,-850.73,0.0003863,5]
[341044655,1730301083004,-594.99,0.0003863,5]
[341044656,1730301083013,-638.53,0.0003863,5]
[341044657,1730301083023,-765.24,0.0003863,5]
[341044658,1730301083032,-872.19,0.0003863,5]
[341044659,1730301083041,-726.09,0.0003863,5]
[341044660,1730301083050,-1312.35,0.0003863,5]
[341044661,1730301083059,-1481.81,0.0003863,5]
[341044662,1730301083068,-662.44,0.0003863,5]
[341044663,1730301083077,-419.22537749,0.0003863,5]
[341044664,1730301083088,-646.17,0.0003863,5]
[341044665,1730301083098,-679.04,0.0003863,5]
[341044666,1730301083108,-925.77,0.0003863,5]
[341044667,1730301083119,-854.36,0.0003863,5]
[341044668,1730301083130,-524.7,0.0003863,5]
[341044669,1730301083140,-1022.86,0.0003863,5]
[341044670,1730301083150,-725.7,0.0003863,5]
[341044671,1730301083161,-228.52410616,0.0003863,5]
[341044672,1730301083171,-1018.14,0.0003863,5]
[341044673,1730301083180,-823.86,0.0003863,5]
[341044674,1730301083189,-1098.19,0.0003863,5]
[341044675,1730301083198,-574.74,0.0003863,5]
[341044676,1730301083210,-1711.21,0.0003863,120]
[341044677,1730301083220,-546.7,0.0003863,5]
[341044678,1730301083233,-500.0,0.0003863,5]
[341044679,1730301083243,-562.58714543,0.0003863,5]
[341044680,1730301083253,-636.4,0.0003863,5]
[341044681,1730301083262,-1397.76,0.0003863,5]
[341044682,1730301083274,-540.06,0.0003863,5]
[341044683,1730301083283,-601.3,0.0003863,5]
[341044684,1730301083292,-701.17,0.0003863,5]
[341044685,1730301083305,-724.57,0.0003863,5]
[341044686,1730301083315,-1140.97,0.0003863,5]
[341044687,1730301083324,-1327.32,0.0003863,5]
[341044688,1730301083334,-794.59,0.0003863,5]
[341044689,1730301083343,-650.16,0.0003863,5]
[341044690,1730301083354,-508.69,0.0003863,5]
[341044691,1730301083364,-553.9,0.0003863,5]
[341044692,1730301083373,-979.14,0.0003863,5]
[341044693,1730301083383,-500.0,0.0003863,5]
[341044694,1730301083393,-604.38,0.0003863,30]
[341044695,1730301083403,-1224.33,0.0003863,5]
[341044696,1730301083413,-902.67,0.0003863,5]
[341044697,1730301083423,-778.22,0.0003863,5]
[341044698,1730301083433,-300.24957364,0.0003863,5]
[341044699,1730301083442,-1335.04,0.0003863,5]
[341044700,1730301083451,-546.12,0.0003863,5]
[341044701,1730301083466,-813.76,0.0003863,5]
[341044702,1730301083480,-500.0,0.0003863,5]
[341044703,1730301083489,-581.37,0.0003863,5]
[341044704,1730301083499,-601.11,0.0003863,5]
[341044705,1730301083508,-500.0,0.0003863,5]
[341044706,1730301083517,-3900.02,0.0003863,5]
[341044707,1730301083527,-3956.8,0.0003863,5]
[341044708,1730301083536,-1033.49,0.0003863,5]
[341044709,1730301083548,-2561.17,0.0003863,5]
[341044710,1730301083558,-5020.91,0.0003863,5]
[341044711,1730301083568,-1504.38,0.0003863,5]
[341044712,1730301083578,-1011.06,0.00038675,31]
[341044713,1730301083588,-1014.18274699,0.000388,120]
[341044714,1730301083597,-432.88,0.000388,30]
[341044715,1730301083607,-856900.86703481,0.000388,120]
[341044716,1730301083617,-500.0,0.000388,2]
[341044717,1730301083626,-500.0,0.000388,2]
[341044718,1730301083635,-500.0,0.000388,2]
[341044719,1730301083644,-500.0,0.000388,2]
[341044720,1730301083654,-500.0,0.000388,2]
[341044721,1730301083663,-500.0,0.000388,2]
[341044722,1730301083673,-500.0,0.000388,2]
[341044723,1730301083682,-500.0,0.000388,2]
[341044724,1730301083692,-500.0,0.000388,2]
[341044725,1730301083701,-500.0,0.000388,2]
[341044726,1730301083717,-500.0,0.000388,2]
[341044727,1730301083726,-500.0,0.000388,2]
[341044728,1730301083736,-500.0,0.000388,2]
[341044729,1730301083745,-500.0,0.000388,2]
[341044730,1730301083755,-500.0,0.000388,2]
[341044731,1730301083764,-500.0,0.000388,2]
[341044732,1730301083773,-500.0,0.000388,2]
[341044733,1730301083782,-500.0,0.000388,2]
[341044734,1730301083791,-500.0,0.000388,2]
[341044735,1730301083800,-500.0,0.000388,2]
[341044736,1730301083809,-500.0,0.000388,2]
[341044737,1730301083818,-500.0,0.000388,2]
[341044738,1730301083827,-500.0,0.000388,2]
[341044739,1730301083836,-500.0,0.000388,2]
[341044740,1730301083845,-500.0,0.000388,2]
[341044741,1730301083853,-500.0,0.000388,2]
[341044742,1730301083862,-500.0,0.000388,2]
[341044743,1730301083871,-500.0,0.000388,2]
[341044744,1730301083881,-500.0,0.000388,2]
[341044745,1730301083890,-500.0,0.000388,2]
[341044746,1730301083900,-500.0,0.000388,2]
[341044747,1730301083910,-500.0,0.000388,2]
[341044748,1730301083928,-500.0,0.000388,2]
[341044749,1730301083938,-500.0,0.000388,2]
[341044750,1730301083947,-500.0,0.000388,2]
[341044751,1730301083959,-500.0,0.000388,2]
[341044752,1730301083969,-500.0,0.000388,2]
[341044753,1730301083979,-500.0,0.000388,2]
[341044754,1730301083988,-500.0,0.000388,2]
[341044755,1730301083998,-500.0,0.000388,2]
[341044756,1730301084008,-500.0,0.000388,2]
[341044757,1730301084017,-500.0,0.000388,2]
[341044758,1730301084026,-500.0,0.000388,2]
[341044759,1730301084036,-500.0,0.000388,2]
[341044760,1730301084045,-500.0,0.000388,2]
[341044761,1730301084055,-500.0,0.000388,2]
[341044762,1730301084064,-500.0,0.000388,2]
[341044763,1730301084074,-500.0,0.000388,2]
[341044764,1730301084083,-500.0,0.000388,2]
[341044765,1730301084092,-500.0,0.000388,2]
[341044766,1730301084102,-500.0,0.000388,2]
[341044767,1730301084111,-500.0,0.000388,2]
[341044768,1730301084119,-500.0,0.000388,2]
[341044769,1730301084129,-500.0,0.000388,2]
[341044770,1730301084138,-500.0,0.000388,2]
[341044771,1730301084147,-500.0,0.000388,2]
[341044772,1730301084157,-500.0,0.000388,2]
[341044773,1730301084167,-500.0,0.000388,2]
[341044774,1730301084177,-500.0,0.000388,2]
[341044775,1730301084187,-500.0,0.000388,2]
[341044776,1730301084196,-500.0,0.000388,2]
[341044777,1730301084207,-500.0,0.000388,2]
[341044778,1730301084222,-500.0,0.000388,2]
[341044779,1730301084232,-500.0,0.000388,2]
[341044780,1730301084241,-500.0,0.000388,2]
[341044781,1730301084251,-500.0,0.000388,2]
[341044782,1730301084262,-500.0,0.000388,2]
[341044783,1730301084403,-500.0,0.000388,2]
[341044784,1730301084413,-500.0,0.000388,2]
[341044785,1730301084423,-178.58,0.0003883,2]
[341044786,1730301084434,-1000.0,0.00038863,2]
[341044787,1730301084443,-385.33473756,0.000389,30]
[341044788,1730301084453,-542.0,0.00038903,5]
[341044789,1730301084469,-500.0,0.00038904,5]
[341044790,1730301084479,-1139.26,0.00038904,2]
[341044791,1730301084489,-600.73,0.00038904,5]
[341044792,1730301084498,-879.74,0.00038904,5]
[341044793,1730301084508,-834.42,0.00038904,5]
[341044794,1730301084518,-205.35461763,0.00038904,5]
[341044795,1730301084528,-500.0,0.00038904,5]
[341044796,1730301084539,-541.52,0.00038904,5]
[341044797,1730301084549,-646.69,0.00038904,5]
[341044798,1730301084559,-599.58,0.00038904,5]
[341044799,1730301084568,-739.01,0.00038904,5]
[341044800,1730301084578,-644.7,0.00038904,5]
[341044801,1730301084588,-610.76,0.00038904,5]
[341044802,1730301084598,-1213.36,0.00038904,5]
[341044803,1730301084608,-741.71,0.00038904,5]
[341044804,1730301084618,-791.34,0.00038904,5]
[341044805,1730301084628,-2165.19,0.00038904,5]
[341044806,1730301084639,-2507.94,0.00038904,5]
[341044807,1730301084648,-556.27,0.00038904,5]
[341044808,1730301084658,-850.73,0.00038904,5]
[341044809,1730301084667,-594.99,0.00038904,5]
[341044810,1730301084678,-638.53,0.00038904,5]
[341044811,1730301084687,-765.24,0.00038904,5]
[341044812,1730301084698,-872.19,0.00038904,5]
[341044813,1730301084710,-726.09,0.00038904,5]
[341044814,1730301084719,-1312.35,0.00038904,5]
[341044815,1730301084729,-1481.81,0.00038904,5]
[341044816,1730301084739,-662.44,0.00038904,5]
[341044817,1730301084748,-646.17,0.00038904,5]
[341044818,1730301084758,-679.04,0.00038904,5]
[341044819,1730301084768,-925.77,0.00038904,5]
[341044820,1730301084777,-854.36,0.00038904,5]
[341044821,1730301084791,-524.7,0.00038904,5]
[341044822,1730301084800,-1022.86,0.00038904,5]
[341044823,1730301084811,-725.7,0.00038904,5]
[341044824,1730301084820,-1018.14,0.00038904,5]
[341044825,1730301084830,-823.86,0.00038904,5]
[341044826,1730301084840,-1098.19,0.00038904,5]
[341044827,1730301084849,-574.74,0.00038904,5]
[341044828,1730301084859,-1711.21,0.00038904,120]
[341044829,1730301084868,-546.7,0.00038904,5]
[341044830,1730301084877,-500.0,0.00038904,5]
[341044831,1730301084888,-636.4,0.00038904,5]
[341044832,1730301084897,-1397.76,0.00038904,5]
[341044833,1730301084906,-540.06,0.00038904,5]
[341044834,1730301084915,-601.3,0.00038904,5]
[341044835,1730301084925,-701.17,0.00038904,5]
[341044836,1730301084934,-724.57,0.00038904,5]
[341044837,1730301084943,-1140.97,0.00038904,5]
[341044838,1730301084953,-1327.32,0.00038904,5]
[341044839,1730301084965,-794.59,0.00038904,5]
[341044840,1730301084974,-650.16,0.00038904,5]
[341044841,1730301084984,-508.69,0.00038904,5]
[341044842,1730301084995,-553.9,0.00038904,5]
[341044843,1730301085006,-979.14,0.00038904,5]
[341044844,1730301085015,-617.14143528,0.00038904,5]
[341044845,1730301085024,-604.38,0.00038904,30]
[341044846,1730301085034,-1224.33,0.00038904,5]
[341044847,1730301085044,-902.67,0.00038904,5]
[341044848,1730301085053,-778.22,0.00038904,5]
[341044849,1730301085063,-1335.04,0.00038904,5]
[341044850,1730301085072,-546.12,0.00038904,5]
[341044851,1730301085081,-813.76,0.00038904,5]
[341044852,1730301085090,-500.0,0.00038904,5]
[341044853,1730301085099,-581.37,0.00038904,5]
[341044854,1730301085108,-601.11,0.00038904,5]
[341044855,1730301085118,-500.0,0.00038904,5]
[341044856,1730301085127,-3900.02,0.00038904,5]
[341044857,1730301085136,-3956.8,0.00038904,5]
[341044858,1730301085147,-1033.49,0.00038904,5]
[341044859,1730301085157,-2561.17,0.00038904,5]
[341044860,1730301085166,-5020.91,0.00038904,5]
[341044861,1730301085176,-1504.38,0.00038904,5]
[341044862,1730301085185,-900.0,0.00039,40]
[341044863,1730301085194,-157.57420445,0.00039,120]
[341044864,1730301085204,-150.0,0.00039,28]
[341044865,1730301085216,-7103.18,0.00039041,120]
[341044866,1730301085226,-542.0,0.00039177,5]
[341044867,1730301085237,-196.0611379,0.00039178,5]
[341044868,1730301085247,-1139.36879674,0.00039178,2]
[341044869,1730301085257,-600.77828602,0.00039178,5]
[341044870,1730301085267,-879.91846171,0.00039178,5]
[341044871,1730301085277,-834.47274126,0.00039178,5]
[341044872,1730301085287,-205.15807662,0.00039178,5]
[341044873,1730301085297,-541.57639293,0.00039178,5]
[341044874,1730301085307,-646.88626233,0.00039178,5]
[341044875,1730301085317,-599.77220297,0.00039178,5]
[341044876,1730301085326,-739.21865035,0.00039178,5]
[341044877,1730301085336,-644.8662793,0.00039178,5]
[341044878,1730301085346,-610.8485858,0.00039178,5]
[341044879,1730301085355,-1213.49905113,0.00039178,5]
[341044880,1730301085365,-741.92996452,0.00039178,5]
[341044881,1730301085375,-791.4736919,0.00039178,5]
[341044882,1730301085384,-2165.41342928,0.00039178,5]
[341044883,1730301085393,-2508.14870982,0.00039178,5]
[341044884,1730301085403,-556.3750726,0.00039178,5]
[341044885,1730301085412,-850.88158657,0.00039178,5]
[341044886,1730301085422,-595.0470007,0.00039178,5]
[341044887,1730301085431,-638.61106848,0.00039178,5]
[341044888,1730301085441,-765.41584695,0.00039178,5]
[341044889,1730301085451,-872.31066707,0.00039178,5]
[341044890,1730301085465,-726.26281992,0.00039178,5]
[341044891,1730301085476,-1312.42730674,0.00039178,5]
[341044892,1730301085486,-1481.99897014,0.00039178,5]
[341044893,1730301085495,-662.45160731,0.00039178,5]
[341044894,1730301085505,-646.28100183,0.00039178,5]
[341044895,1730301085515,-679.2584037,0.00039178,5]
[341044896,1730301085524,-925.99462477,0.00039178,5]
[341044897,1730301085533,-854.51332429,0.00039178,5]
[341044898,1730301085543,-524.74169894,0.00039178,5]
[341044899,1730301085553,-1022.86365692,0.00039178,5]
[341044900,1730301085563,-725.72426892,0.00039178,5]
[341044901,1730301085573,-1018.24582823,0.00039178,5]
[341044902,1730301085582,-823.92884597,0.00039178,5]
[341044903,1730301085591,-1098.20415266,0.00039178,5]
[341044904,1730301085600,-574.75145082,0.00039178,5]
[341044905,1730301085609,-1711.32640021,0.00039178,120]
[341044906,1730301085619,-546.71996943,0.00039178,5]
[341044907,1730301085628,-337.99452546,0.00039178,5]
[341044908,1730301085638,-636.5476037,0.00039178,5]
[341044909,1730301085647,-1397.77854645,0.00039178,5]
[341044910,1730301085657,-540.18,0.00039178,5]
[341044911,1730301085666,-601.34664162,0.00039178,5]
[341044912,1730301085675,-701.28374653,0.00039178,5]
[341044913,1730301085685,-724.78263301,0.00039178,5]
[341044914,1730301085694,-1141.1611,0.00039178,5]
[341044915,1730301085703,-1327.48160939,0.00039178,5]
[341044916,1730301085714,-794.66433327,0.00039178,5]
[341044917,1730301085724,-650.38431399,0.00039178,5]
[341044918,1730301085733,-508.73685804,0.00039178,5]
[341044919,1730301085743,-554.11403215,0.00039178,5]
[341044920,1730301085752,-979.27763667,0.00039178,5]
[341044921,1730301085761,-604.38825326,0.00039178,30]
[341044922,1730301085770,-1224.45000401,0.00039178,5]
[341044923,1730301085780,-902.77672744,0.00039178,5]
[341044924,1730301085789,-778.451412,0.00039178,5]
[341044925,1730301085799,-1335.05128233,0.00039178,5]
[341044926,1730301085809,-546.23141665,0.00039178,5]
[341044927,1730301085818,-813.76272747,0.00039178,5]
[341044928,1730301085828,-276.07168906,0.00039178,5]
[341044929,1730301085837,-581.52501782,0.00039178,5]
[341044930,1730301085847,-601.20503735,0.00039178,5]
[341044931,1730301085856,-210.4308316,0.00039178,5]
[341044932,1730301085866,-3900.22135735,0.00039178,5]
[341044933,1730301085875,-3957.0069712,0.00039178,5]
[341044934,1730301085885,-1033.71581394,0.00039178,5]
[341044935,1730301085895,-2561.33972312,0.00039178,5]
[341044936,1730301085908,-5020.9516,0.00039178,5]
[341044937,1730301085917,-1084.27,0.000393,14]
[341044938,1730301085926,-182.45,0.000393,31]
[341044939,1730301085935,-182.45,0.000393,31]
[341044940,1730301085945,-182.45,0.000393,31]
[341044941,1730301085954,-182.45,0.000393,31]
[341044942,1730301085966,-182.45,0.000393,31]
[341044943,1730301085975,-182.45,0.000393,31]
[341044944,1730301085985,-182.45,0.000393,31]
[341044945,1730301085994,-182.45,0.000393,31]
[341044946,1730301086003,-182.45,0.000393,31]
[341044947,1730301086012,-182.45,0.000393,31]
[341044948,1730301086022,-182.45,0.000393,31]
[341044949,1730301086031,-182.45,0.000393,31]
[341044950,1730301086040,-182.45,0.000393,31]
[341044951,1730301086051,-182.45,0.000393,31]
[341044952,1730301086060,-182.45,0.000393,31]
[341044953,1730301086070,-182.45,0.000393,31]
[341044954,1730301086082,-182.45,0.000393,31]
[341044955,1730301086092,-182.45,0.000393,31]
[341044956,1730301086102,-182.45,0.000393,31]
[341044957,1730301086111,-182.45,0.000393,31]
[341044958,1730301086120,-182.45,0.000393,31]
[341044959,1730301086130,-182.45,0.000393,31]
[341044960,1730301086140,-182.45,0.000393,31]
[341044961,1730301086149,-182.45,0.000393,31]
[341044962,1730301086160,-565.16485003,0.00039451,5]
[341044963,1730301086170,-150.0,0.000395,29]
[341044964,1730301086179,-432.88,0.000397,30]
[341044965,1730301086189,-7103.18,0.00039726,120]
[341044966,1730301086201,-969178.74363091,0.000398,120]
[341044967,1730301086213,-1241.29,0.000398,120]
[341044968,1730301086225,-811.0,0.00039842,2]
[341044969,1730301086235,-1011.06,0.0003985,40]
[341044970,1730301086244,-499.0,0.000399,2]
[341044971,1730301086254,-10003.46311869,0.000399,7]
[341044972,1730301086265,-167.57425,0.00039968,2]
[341044973,1730301086276,-455.24569762,0.0003998,120]
[341044974,1730301086287,-350.0,0.0004,120]
[341044975,1730301086299,-900.0,0.0004,41]
[341044976,1730301086310,-5569.38982281,0.0004,2]
[341044977,1730301086320,-150.0,0.0004,10]
[341044978,1730301086329,-206.61412532,0.0004,30]
[341044979,1730301086339,-1171.52658758,0.0004,14]
[341044980,1730301086348,-165.72737117,0.0004,120]
[341044981,1730301086357,-324.55548604,0.0004,120]
[341044982,1730301086366,-592.56483685,0.0004,2]
[341044983,1730301086377,-235.9641678,0.0004,120]
[341044984,1730301086388,-500.0,0.0004,120]
[341044985,1730301086398,-300.0,0.0004,2]
[341044986,1730301086409,-104870.57985233,0.0004,30]
[341044987,1730301086418,-300.25972286,0.0004,7]
[341044988,1730301086428,-109395.19,0.0004,30]
[341044989,1730301086437,-7976.0,0.0004,30]
[341044990,1730301086446,-2000.0,0.0004,120]
[341044991,1730301086458,-2636.47,0.0004,120]
[341044992,1730301086468,-3862.29,0.0004,120]
[341044993,1730301086478,-359.86,0.0004,120]
[341044994,1730301086487,-150.0,0.0004,29]
[341044995,1730301086497,-1162.57,0.0004,120]
[341044996,1730301086507,-392.46,0.0004,120]
[341044997,1730301086516,-178.3,0.0004,2]
[341044998,1730301086525,-374.76,0.0004,2]
[341044999,1730301086534,-150.0,0.0004,2]
[341045000,1730301086544,-150.0,0.0004,2]
[341045001,1730301086554,-178.58,0.00040033,2]
[341045002,1730301086563,-478.86,0.0004029,2]
[341045003,1730301086573,-4291.83,0.0004029,2]
[341045004,1730301086583,-805.74,0.00040346,2]
[341045005,1730301086592,-7103.18,0.0004041,120]
[341045006,1730301086602,-442.26280167,0.000405,120]
[341045007,1730301086611,-1084.27,0.000405,14]
[341045008,1730301086621,-150.0,0.000405,30]
[341045009,1730301086631,-1000.0,0.00040552,5]
[341045010,1730301086640,-152.0,0.00040688,5]
[341045011,1730301086649,-297.71316292,0.0004071,20]
[341045012,1730301086658,-182.45,0.000409,31]
[341045013,1730301086668,-182.45,0.000409,31]
[341045014,1730301086677,-182.45,0.000409,31]
[341045015,1730301086687,-182.45,0.000409,31]
[341045016,1730301086696,-182.45,0.000409,31]
[341045017,1730301086708,-182.45,0.000409,31]
[341045018,1730301086720,-182.45,0.000409,31]
[341045019,1730301086729,-182.45,0.000409,31]
[341045020,1730301086739,-182.45,0.000409,31]
[341045021,1730301086748,-182.45,0.000409,31]
[341045022,1730301086758,-182.45,0.000409,31]
[341045023,1730301086767,-182.45,0.000409,31]
[341045024,1730301086777,-182.45,0.000409,31]
[341045025,1730301086786,-182.45,0.000409,31]
[341045026,1730301086796,-182.45,0.000409,31]
[341045027,1730301086805,-182.45,0.000409,31]
[341045028,1730301086814,-182.45,0.000409,31]
[341045029,1730301086823,-182.45,0.000409,31]
[341045030,1730301086832,-182.45,0.000409,31]
[341045031,1730301086842,-182.45,0.000409,31]
[341045032,1730301086851,-182.45,0.000409,31]
[341045033,1730301086861,-182.45,0.000409,31]
[341045034,1730301086870,-182.45,0.000409,31]
[341045035,1730301086879,-182.45,0.000409,31]
[341045036,1730301086889,-183.36,0.00040908,120]
[341045037,1730301086898,-183.361,0.00040908,120]
[341045038,1730301086908,-183.361,0.00040908,120]
[341045039,1730301086917,-900.0,0.00041,42]
[341045040,1730301086926,-210.0,0.00041,10]
[341045041,1730301086935,-150.0,0.00041,10]
[341045042,1730301086944,-35680.0,0.00041,30]
[341045043,1730301086953,-5271.8989633,0.00041,30]
[341045044,1730301086969,-150.0,0.00041,30]
[341045045,1730301087102,-1043.611925,0.00041025,49]
[341045046,1730301087112,-150.0,0.00041059,2]
[341045047,1730301087122,-10000.0,0.0004109,120]
[341045048,1730301087131,-500.0,0.00041095,7]
[341045049,1730301087141,-548.57128259,0.00041095,2]
[341045050,1730301087150,-794.07,0.00041095,5]
[341045051,1730301087160,-794.07,0.00041095,5]
[341045052,1730301087170,-794.07,0.00041095,5]
[341045053,1730301087179,-794.07,0.00041095,5]
[341045054,1730301087188,-794.07,0.00041095,5]
[341045055,1730301087197,-794.07,0.00041095,5]
[341045056,1730301087209,-794.07,0.00041095,5]
[341045057,1730301087219,-794.07,0.00041095,5]
[341045058,1730301087231,-794.07,0.00041095,5]
[341045059,1730301087241,-794.07,0.00041095,5]
[341045060,1730301087250,-794.07,0.00041095,5]
[341045061,1730301087261,-794.07,0.00041095,5]
[341045062,1730301087270,-794.07,0.00041095,5]
[341045063,1730301087280,-794.07,0.00041095,5]
[341045064,1730301087290,-794.07,0.00041095,5]
[341045065,1730301087301,-794.07,0.00041095,5]
[341045066,1730301087310,-794.07,0.00041095,5]
[341045067,1730301087320,-794.07,0.00041095,5]
[341045068,1730301087329,-794.07,0.00041095,5]
[341045069,1730301087339,-794.07,0.00041095,5]
[341045070,1730301087350,-794.07,0.00041095,5]
[341045071,1730301087359,-794.07,0.00041095,5]
[341045072,1730301087369,-794.07,0.00041095,5]